fUSD/lending_fUSD_20250423
["ID","MTS","AMOUNT","RATE_DAILY","PERIOD"]
[358714184,1745400639971,-8141.91692491,0.00022,15]
[358714186,1745400639980,-20005.93408226,0.00023,15]
[358714188,1745400639989,-8289.91,0.00023,2]
[358714190,1745400639999,-5396.26449984,0.00023038,4]
[358714192,1745400640010,-1763.0,0.00023826,2]
[358714194,1745400640020,-158.26346121,0.000239,2]
[358714196,1745400640030,-5000.0078054,0.00024,5]
[358714198,1745400640040,-470.41034981,0.0002402,2]
[358714200,1745400640050,-19999.99,0.00024174,2]
[358714202,1745400640060,-3996.35,0.00024174,2]
[358714204,1745400640070,-5396.26449984,0.00024176,5]
[358714206,1745400640080,-152.14650202,0.00024773,2]
[358714208,1745400640090,-500.0,0.00024773,2]
[358714210,1745400640100,-499.20891726,0.00024773,2]
[358714212,1745400640109,-500.0,0.00024773,2]
[358714214,1745400640119,-501.40751603,0.00024773,2]
[358714216,1745400640129,-627250.320563,0.000248,3]
[358714219,1745400640138,-559810.94927,0.000249,3]
[358714221,1745400640148,-5396.26449984,0.00025314,5]
[358714223,1745400640158,-2469.0,0.00026071,2]
[358714224,1745400640168,-5396.26449984,0.00026452,6]
[358714227,1745400640178,-514.83,0.00026743,2]
[358714229,1745400640187,-3802.58053551,0.00026856,2]
[358714231,1745400640197,-700.0,0.00027397,2]
[358714232,1745400640207,-500.0,0.00027397,5]
[358714234,1745400640217,-250.0,0.0002754,2]
[358714237,1745400640227,-5396.26449984,0.0002759,7]
[358714239,1745400640236,-279.63718743,0.00027945,5]
[358714241,1745400640246,-1361.0,0.00028528,2]
[358714243,1745400640256,-5396.26449984,0.00028728,8]
[358714245,1745400640266,-585.13,0.00028923,2]
[358714247,1745400640276,-1173.7987,0.00028959,10]
[358714249,1745400640285,-159.68770128,0.00028973,5]
[358714251,1745400640298,-500.0,0.00028973,5]
[358714253,1745400640307,-500.0,0.00028973,5]
[358714254,1745400640317,-300.0,0.00028999,10]
[358714257,1745400640326,-500.0,0.00028999,2]
[358714258,1745400640336,-694.50507917,0.00028999,10]
[358714260,1745400640346,-300.0,0.00028999,10]
[358714263,1745400640356,-75039.92112642,0.00029,2]
[358714265,1745400640372,-158.26346121,0.00029142,2]
[358714267,1745400640382,-5396.26449984,0.00029866,8]
[358714269,1745400640392,-1320.95623379,0.0003,20]
[358714271,1745400640402,-5379.93769628,0.0003,10]
[358714273,1745400640412,-451.15295149,0.0003,2]
[358714276,1745400640423,-194.2,0.0003,2]
[358714278,1745400640433,-160.70290143,0.0003,2]
[358714281,1745400640443,-1000.0,0.00030252,5]
[358714283,1745400640453,-999.17900117,0.00030252,5]
[358714285,1745400640463,-870.0,0.0003033,2]
[358714287,1745400640473,-876.0,0.0003033,2]
[358714289,1745400640483,-265.684,0.0003033,2]
[358714291,1745400640492,-2059.0,0.0003033,2]
[358714294,1745400640502,-254.601,0.0003033,2]
[358714297,1745400640512,-917.0,0.0003033,2]
[358714299,1745400640522,-2145.0,0.0003033,2]
[358714301,1745400640532,-1334.0,0.0003033,2]
[358714303,1745400640541,-3984.0,0.0003033,2]
[358714305,1745400640551,-1132.0,0.0003033,2]
[358714307,1745400640562,-796.0,0.0003033,2]
[358714309,1745400640571,-151.93389675,0.000305,2]
[358714311,1745400640581,-5396.26449984,0.00031003,9]
[358714313,1745400640590,-3196.96066302,0.00032,5]
[358714315,1745400640600,-1507.11634356,0.00032,2]
[358714317,1745400640610,-5396.26449984,0.00032141,10]
[358714319,1745400640619,-499.4958612,0.000325,5]
[358714321,1745400640630,-500.0,0.000325,5]
[358714323,1745400640639,-4653.5514514,0.000328,2]
[358714325,1745400640648,-150.0,0.00032877,5]
[358714327,1745400640658,-4557.32775913,0.00033,2]
[358714329,1745400640667,-25127.17473418,0.00033,2]
[358714331,1745400640677,-5396.26449984,0.00033279,11]
[358714333,1745400640687,-870.0,0.0003333,2]
[358714335,1745400640696,-876.0,0.0003333,2]
[358714337,1745400640705,-2059.0,0.0003333,2]
[358714339,1745400640716,-152.0,0.0003333,2]
[358714341,1745400640725,-2145.0,0.0003333,2]
[358714343,1745400640735,-1334.0,0.0003333,2]
[358714345,1745400640744,-390.701,0.0003333,2]
[358714347,1745400640754,-3984.0,0.0003333,2]
[358714349,1745400640764,-1132.0,0.0003333,2]
[358714351,1745400640774,-796.0,0.0003333,2]
[358714353,1745400640783,-4003.47403547,0.00034,2]
[358714355,1745400640793,-158.26346121,0.00034384,6]
[358714357,1745400640803,-2457.13438253,0.000344,2]
[358714359,1745400640813,-17312.57595485,0.000344,2]
[358714361,1745400640822,-5396.26449984,0.00034417,11]
[358714363,1745400640832,-1000.0,0.00034452,5]
[358714365,1745400640842,-1000.0,0.00034452,5]
[358714367,1745400640851,-442.23021767,0.00034558,2]
[358714369,1745400640860,-500.0,0.00034803,7]
[358714371,1745400640870,-873.99679988,0.0003489,14]
[358714373,1745400640880,-6029.78467888,0.00035,2]
[358714376,1745400640893,-1569.32102285,0.00035,7]
[358714378,1745400640903,-5396.26449984,0.00035555,12]
[358714380,1745400640912,-200395.46247041,0.0003593,7]
[358714381,1745400640921,-500.0,0.00035973,5]
[358714384,1745400640931,-358434.66410443,0.00036329,2]
[358714386,1745400640942,-870.0,0.0003633,2]
[358714388,1745400640952,-876.0,0.0003633,2]
[358714390,1745400640962,-727.762,0.0003633,2]
[358714392,1745400640971,-152.0,0.0003633,2]
[358714394,1745400640981,-2145.0,0.0003633,2]
[358714396,1745400640991,-1334.0,0.0003633,2]
[358714398,1745400641000,-3984.0,0.0003633,2]
[358714400,1745400641009,-1132.0,0.0003633,2]
[358714401,1745400641019,-796.0,0.0003633,2]
[358714403,1745400641028,-5396.26449984,0.00036693,13]
[358714406,1745400641039,-1541.82160026,0.0003759,2]
[358714408,1745400641048,-5396.26449984,0.00037831,14]
[358714409,1745400641059,-514.83,0.00037975,2]
[358714411,1745400641068,-509.92508194,0.00037979,5]
[358714413,1745400641077,-150.05898027,0.00038356,5]
[358714415,1745400641087,-151.32,0.000389,2]
[358714418,1745400641097,-151.32,0.000389,2]
[358714419,1745400641106,-151.32,0.000389,2]
[358714421,1745400641116,-151.32,0.000389,2]
[358714423,1745400641126,-151.32,0.000389,2]
[358714426,1745400641136,-151.32,0.000389,2]
[358714428,1745400641147,-151.32,0.000389,2]
[358714430,1745400641156,-151.32,0.000389,2]
[358714432,1745400641165,-151.32,0.000389,2]
[358714434,1745400641177,-151.32,0.000389,2]
[358714436,1745400641186,-151.32,0.000389,2]
[358714438,1745400641195,-151.32,0.000389,2]
[358714440,1745400641205,-151.32,0.000389,2]
[358714442,1745400641214,-151.32,0.000389,2]
[358714444,1745400641223,-151.32,0.000389,2]
[358714446,1745400641232,-151.32,0.000389,2]
[358714448,1745400641242,-151.32,0.000389,2]
[358714450,1745400641252,-151.32,0.000389,2]
[358714452,1745400641262,-151.32,0.000389,2]
[358714453,1745400641272,-151.32,0.000389,2]
[358714455,1745400641281,-151.32,0.000389,2]
[358714457,1745400641292,-151.32,0.000389,2]
[358714460,1745400641305,-151.32,0.000389,2]
[358714461,1745400641314,-151.32,0.000389,2]
[358714463,1745400641323,-151.32,0.000389,2]
[358714466,1745400641334,-151.32,0.000389,2]
[358714468,1745400641344,-151.32,0.000389,2]
[358714470,1745400641354,-151.32,0.000389,2]
[358714472,1745400641364,-151.32,0.000389,2]
[358714473,1745400641374,-151.32,0.000389,2]
[358714475,1745400641383,-151.32,0.000389,2]
[358714478,1745400641393,-151.32,0.000389,2]
[358714480,1745400641402,-151.32,0.000389,2]
[358714482,1745400641412,-151.32,0.000389,2]
[358714483,1745400641421,-151.32,0.000389,2]
[358714485,1745400641430,-151.32,0.000389,2]
[358714488,1745400641440,-151.32,0.000389,2]
[358714490,1745400641449,-151.32,0.000389,2]
[358714492,1745400641459,-151.32,0.000389,2]
[358714493,1745400641469,-151.32,0.000389,2]
[358714496,1745400641480,-151.32,0.000389,2]
[358714498,1745400641490,-151.32,0.000389,2]
[358714499,1745400641499,-151.32,0.000389,2]
[358714501,1745400641509,-151.32,0.000389,2]
[358714503,1745400641518,-151.32,0.000389,2]
[358714506,1745400641529,-151.32,0.000389,2]
[358714508,1745400641539,-151.32,0.000389,2]
[358714510,1745400641548,-151.32,0.000389,2]
[358714511,1745400641559,-151.32,0.000389,2]
[358714513,1745400641568,-151.32,0.000389,2]
[358714516,1745400641578,-151.32,0.000389,2]
[358714518,1745400641587,-151.32,0.000389,2]
[358714520,1745400641597,-151.32,0.000389,2]
[358714521,1745400641606,-151.32,0.000389,2]
[358714524,1745400641616,-151.32,0.000389,2]
[358714526,1745400641626,-151.32,0.000389,2]
[358714528,1745400641636,-151.32,0.000389,2]
[358714530,1745400641646,-151.32,0.000389,2]
[358714532,1745400641655,-151.32,0.000389,2]
[358714534,1745400641665,-151.32,0.000389,2]
[358714536,1745400641674,-151.32,0.000389,2]
[358714538,1745400641684,-151.32,0.000389,2]
[358714540,1745400641694,-151.32,0.000389,2]
[358714542,1745400641703,-151.32,0.000389,2]
[358714544,1745400641713,-151.32,0.000389,2]
[358714546,1745400641723,-151.32,0.000389,2]
[358714548,1745400641732,-151.32,0.000389,2]
[358714550,1745400641742,-151.32,0.000389,2]
[358714552,1745400641751,-151.32,0.000389,2]
[358714554,1745400641761,-151.32,0.000389,2]
[358714556,1745400641772,-151.32,0.000389,2]
[358714558,1745400641782,-151.32,0.000389,2]
[358714559,1745400641792,-151.32,0.000389,2]
[358714560,1745400641801,-5396.26449984,0.00038969,14]
[358714561,1745400641811,-876.0,0.0003933,2]
[358714562,1745400641821,-152.0,0.0003933,2]
[358714563,1745400641831,-2145.0,0.0003933,2]
[358714564,1745400641840,-1334.0,0.0003933,2]
[358714565,1745400641854,-2379.095,0.0003933,2]
[358714566,1745400641863,-1132.0,0.0003933,2]
[358714567,1745400641874,-796.0,0.0003933,2]
[358714568,1745400641884,-180.0,0.00039584,22]
[358714569,1745400641894,-158.26346121,0.00039626,13]
[358714570,1745400641904,-360.55680949,0.00039726,15]
[358714571,1745400641913,-2061.46,0.000398,14]
[358714572,1745400641923,-8965.00793585,0.00039999,7]
[358714573,1745400641934,-4835.49361546,0.0004,10]
[358714575,1745400641945,-1828.98834703,0.0004,2]
[358714577,1745400641954,-1235.76222445,0.0004,10]
[358714579,1745400641963,-1539.91019181,0.0004,15]
[358714581,1745400641974,-163.22183248,0.0004,14]
[358714583,1745400641983,-43217.0,0.0004,2]
[358714585,1745400641993,-5396.26449984,0.00040107,15]
[358714586,1745400642002,-1500.0,0.00040271,5]
[358714589,1745400642012,-970.0688,0.00040499,2]
[358714591,1745400642023,-1652.0495496,0.000407,2]
[358714593,1745400642032,-158.1307,0.00040888,7]
[358714595,1745400642042,-5565.0,0.00041,3]
[358714597,1745400642052,-500.0,0.00041096,10]
[358714599,1745400642062,-375.0,0.000411,30]
[358714600,1745400642071,-5396.26449984,0.00041245,16]
[358714602,1745400642081,-530.15871669,0.00041452,10]
[358714604,1745400642091,-1000.0,0.00041644,10]
[358714606,1745400642100,-150.0,0.00041658,30]
[358714608,1745400642110,-50000.0,0.00042,42]
[358714610,1745400642120,-5565.0,0.00042,5]
[358714612,1745400642129,-217.98390656,0.00042113,30]
[358714614,1745400642139,-152.73026843,0.00042113,30]
[358714616,1745400642148,-150.0,0.00042113,30]
[358714618,1745400642159,-150.0,0.00042113,30]
[358714620,1745400642168,-210.42817784,0.00042113,30]
[358714622,1745400642177,-765.27051608,0.00042113,30]
[358714624,1745400642187,-311.97860147,0.00042192,10]
[358714626,1745400642196,-2145.0,0.0004233,2]
[358714628,1745400642205,-906.993,0.0004233,2]
[358714630,1745400642215,-1132.0,0.0004233,2]
[358714632,1745400642224,-796.0,0.0004233,2]
[358714634,1745400642234,-5396.26449984,0.00042383,17]
[358714636,1745400642245,-50000.0,0.00043,43]
[358714638,1745400642254,-1003213.0,0.00043,60]
[358714640,1745400642264,-159.436332,0.00043,14]
[358714642,1745400642273,-151.0,0.00043,14]
[358714644,1745400642283,-151.0,0.00043,14]
[358714646,1745400642292,-151.0,0.00043,14]
[358714648,1745400642303,-151.0,0.00043,14]
[358714650,1745400642313,-151.0,0.00043,14]
[358714652,1745400642322,-151.0,0.00043,14]
[358714655,1745400642331,-308.2639,0.00043084,2]
[358714658,1745400642341,-911.7568,0.00043084,2]
[358714661,1745400642350,-164.26,0.00043136,2]
[358714664,1745400642360,-500.0,0.00043183,30]
[358714667,1745400642369,-151.0,0.00043184,2]
[358714670,1745400642382,-21282.476,0.00043185,120]
[358714673,1745400642391,-21282.476,0.00043185,120]
[358714676,1745400642400,-21282.476,0.00043185,120]
[358714680,1745400642410,-21282.476,0.00043185,120]
[358714684,1745400642419,-21282.476,0.00043185,120]
[358714686,1745400642429,-5396.26449984,0.00043521,17]
[358714688,1745400642438,-500.0,0.00043835,2]
[358714690,1745400642448,-500.0,0.00043835,2]
[358714692,1745400642457,-500.0,0.00043835,2]
[358714694,1745400642468,-500.0,0.00043835,2]
[358714696,1745400642477,-500.0,0.00043835,2]
[358714698,1745400642487,-500.0,0.00043835,2]
[358714700,1745400642497,-544.86514967,0.00043835,2]
[358714703,1745400642507,-500.0,0.00043835,2]
[358714705,1745400642516,-500.0,0.00043835,2]
[358714708,1745400642526,-500.0,0.00043835,2]
[358714711,1745400642536,-500.0,0.00043835,2]
[358714713,1745400642546,-500.0,0.00043835,2]
[358714716,1745400642556,-500.0,0.00043835,2]
[358714718,1745400642566,-604.64465951,0.00043835,2]
[358714720,1745400642575,-500.0,0.00043835,2]
[358714721,1745400642585,-500.0,0.00043835,2]
[358714723,1745400642594,-500.0,0.00043835,2]
[358714725,1745400642604,-500.0,0.00043835,2]
[358714727,1745400642613,-500.0,0.00043835,2]
[358714729,1745400642622,-500.0,0.00043835,2]
[358714731,1745400642631,-500.0,0.00043835,2]
[358714733,1745400642641,-500.0,0.00043835,2]
[358714735,1745400642650,-500.0,0.00043835,2]
[358714737,1745400642660,-500.0,0.00043835,2]
[358714739,1745400642669,-500.0,0.00043835,2]
[358714742,1745400642679,-511.43147068,0.00043835,2]
[358714743,1745400642689,-500.0,0.00043835,2]
[358714746,1745400642699,-500.0,0.00043835,2]
[358714748,1745400642708,-500.0,0.00043835,2]
[358714750,1745400642718,-500.0,0.00043835,2]
[358714752,1745400642727,-500.0,0.00043835,2]
[358714754,1745400642737,-500.0,0.00043835,2]
[358714756,1745400642746,-500.0,0.00043835,2]
[358714758,1745400642757,-500.0,0.00043835,2]
[358714759,1745400642767,-500.0,0.00043835,2]
[358714761,1745400642776,-500.0,0.00043835,2]
[358714763,1745400642786,-500.0,0.00043835,2]
[358714765,1745400642796,-500.0,0.00043835,2]
[358714767,1745400642806,-500.0,0.00043835,2]
[358714769,1745400642816,-265.07846003,0.00043836,2]
[358714771,1745400642826,-10000.0,0.00043836,30]
[358714773,1745400642835,-5710.0,0.00043836,14]
[358714775,1745400642845,-1423.1763,0.00043888,30]
[358714777,1745400642855,-50000.0,0.00044,44]
[358714779,1745400642865,-22146.0,0.00044,3]
[358714781,1745400642875,-2061.46,0.000442,14]
[358714783,1745400642884,-399.87619122,0.00044384,30]
[358714785,1745400642894,-1074.9981079,0.00044411,4]
[358714787,1745400642903,-843.49715552,0.00044471,10]
[358714789,1745400642913,-1500.0,0.00044471,10]
[358714792,1745400642923,-399.87619122,0.00044548,30]
[358714793,1745400642932,-5396.26449984,0.00044659,18]
[358714795,1745400642942,-150.0,0.00044681,120]
[358714797,1745400642951,-399.87619122,0.0004474,30]
[358714799,1745400642961,-181.23,0.00044844,2]
[358714802,1745400642971,-399.87619122,0.00044904,30]
[358714803,1745400642980,-161.28,0.00044958,2]
[358714805,1745400642989,-50000.0,0.00045,45]
[358714807,1745400642999,-13164.00465224,0.00045,2]
[358714810,1745400643011,-3600.0,0.00045,120]
[358714812,1745400643021,-160.0,0.00045,90]
[358714814,1745400643030,-23593.22995946,0.00045,30]
[358714815,1745400643039,-235.85,0.00045074,2]
[358714817,1745400643048,-399.87619122,0.00045096,30]
[358714819,1745400643058,-155.21,0.00045167,120]
[358714821,1745400643068,-2110.0,0.00045249,30]
[358714824,1745400643079,-399.87619122,0.0004526,30]
[358714826,1745400643089,-2061.46,0.000453,14]
[358714828,1745400643099,-924.45,0.0004533,2]
[358714830,1745400643108,-164.26,0.000454,2]
[358714832,1745400643118,-399.87619122,0.00045452,30]
[358714834,1745400643127,-1000.0,0.00045453,2]
[358714836,1745400643136,-7246.43,0.00045488,2]
[358714858,1745400643346,-213.10817793,0.00045614,30]
[358714860,1745400643356,-399.87619122,0.00045616,30]
[358714862,1745400643366,-250.0,0.00045635,2]
[358714864,1745400643378,-161.314,0.00045635,74]
[358714866,1745400643388,-23900.0,0.000457,2]
[358714868,1745400643397,-180.2,0.000457,2]
[358714870,1745400643406,-180.2,0.000457,2]
[358714872,1745400643415,-180.2,0.000457,2]
[358714874,1745400643426,-2097.37565556,0.00045747,17]
[358714876,1745400643435,-2110.0,0.00045749,30]
[358714878,1745400643444,-1102.78563424,0.000458,2]
[358714880,1745400643453,-399.87619122,0.00045808,30]
[358714882,1745400643463,-399.87619122,0.00045973,30]
[358714884,1745400643473,-500.0,0.00045999,30]
[358714886,1745400643482,-50000.0,0.00046,46]
[358714888,1745400643491,-1995.0,0.00046,30]
[358714890,1745400643501,-72042.03488726,0.00046,2]
[358714892,1745400643511,-469.78547918,0.00046,120]
[358714894,1745400643522,-19015.09857618,0.00046,2]
[358714896,1745400643532,-399.87619122,0.00046164,30]
[358714898,1745400643542,-150.042318,0.00046198,120]
[358714900,1745400643552,-300.63192806,0.000462,4]
[358714902,1745400643561,-2110.0,0.00046249,30]
[358714904,1745400643571,-150.042318,0.00046298,120]
[358714906,1745400643580,-399.87619122,0.00046329,30]
[358714908,1745400643590,-150.042318,0.00046398,120]
[358714910,1745400643599,-79516.286427,0.00046398,10]
[358714912,1745400643609,-180.2,0.000464,2]
[358714914,1745400643619,-2061.46,0.000464,14]
[358714916,1745400643628,-1333.0,0.00046466,120]
[358714918,1745400643638,-150.0,0.00046485,2]
[358714920,1745400643647,-151.042318,0.00046498,120]
[358714922,1745400643656,-33164.77258111,0.000465,120]
[358714924,1745400643667,-4785.95641424,0.000465,120]
[358714927,1745400643677,-2008.0781,0.00046515,3]
[358714929,1745400643687,-2000.0,0.00046515,3]
[358714931,1745400643696,-200.0,0.00046515,2]
[358714932,1745400643705,-248.34498724,0.00046517,2]
[358714935,1745400643715,-150.0,0.00046527,2]
[358714937,1745400643725,-150.0,0.00046535,2]
[358714939,1745400643735,-14173.0446,0.00046546,2]
[358714941,1745400643744,-150.0,0.00046548,2]
[358714943,1745400643754,-150.0,0.00046554,2]
[358714945,1745400643763,-150.0,0.00046575,2]
[358714947,1745400643774,-500.0,0.00046575,120]
[358714949,1745400643783,-500.0,0.00046575,120]
[358714951,1745400643792,-500.0,0.00046575,120]
[358714953,1745400643802,-500.0,0.00046575,120]
[358714954,1745400643811,-500.0,0.00046575,120]
[358714957,1745400643821,-500.0,0.00046575,120]
[358714959,1745400643831,-500.0,0.00046575,120]
[358714961,1745400643841,-500.0,0.00046575,120]
[358714963,1745400643850,-500.0,0.00046575,120]
[358714965,1745400643860,-500.0,0.00046575,120]
[358714966,1745400643872,-500.0,0.00046575,120]
[358714968,1745400643882,-500.0,0.00046575,120]
[358714970,1745400643891,-500.0,0.00046575,120]
[358714972,1745400643901,-500.0,0.00046575,120]
[358714974,1745400643911,-500.0,0.00046575,120]
[358714975,1745400643920,-500.0,0.00046575,120]
[358714976,1745400643930,-500.0,0.00046575,120]
[358714977,1745400643939,-500.0,0.00046575,120]
[358714978,1745400643949,-298.46991144,0.00046575,120]
[358714979,1745400643958,-500.0,0.00046575,120]
[358714980,1745400643969,-500.0,0.00046575,120]
[358714981,1745400643978,-500.0,0.00046575,120]
[358714982,1745400643988,-500.0,0.00046575,120]
[358714983,1745400643998,-500.0,0.00046575,120]
[358714984,1745400644007,-500.0,0.00046575,120]
[358714985,1745400644017,-500.0,0.00046575,120]
[358714986,1745400644026,-500.0,0.00046575,120]
[358714987,1745400644036,-600.0,0.00046575,120]
[358714988,1745400644045,-500.0,0.00046575,120]
[358714989,1745400644055,-150.0,0.00046575,10]
[358714990,1745400644066,-514.9645842,0.00046575,5]
[358714991,1745400644075,-150.0,0.00046575,10]
[358714992,1745400644084,-28456.3415359,0.0004658,7]
[358714993,1745400644095,-150.0,0.00046592,7]
[358714994,1745400644104,-521.0027685,0.00046599,2]
[358714995,1745400644114,-30341.3216,0.000466,2]
[358714996,1745400644124,-1540.68,0.000466,2]
[358714997,1745400644134,-150.0,0.00046611,7]
[358714998,1745400644144,-12346.6756,0.00046629,2]
[358714999,1745400644154,-10710.0208,0.00046636,2]
[358715000,1745400644165,-1804.068,0.00046636,2]
[358715001,1745400644175,-169.0254,0.00046636,2]
[358715002,1745400644186,-5000.0,0.00046636,120]
[358715003,1745400644196,-225.0,0.00046646,2]
[358715004,1745400644206,-1000.0,0.00046646,2]
[358715005,1745400644216,-150.0,0.00046653,7]
[358715006,1745400644226,-400.0,0.0004667,3]
[358715007,1745400644236,-760.895396,0.0004667,3]
[358715008,1745400644246,-150.0,0.00046679,7]
[358715009,1745400644255,-2000.0,0.00046686,120]
[358715010,1745400644265,-200.0,0.00046686,120]
[358715011,1745400644275,-700.0,0.000467,17]
[358715012,1745400644285,-700.0,0.000467,17]
[358715013,1745400644295,-700.0,0.000467,17]
[358715014,1745400644307,-700.0,0.000467,17]
[358715015,1745400644317,-700.0,0.000467,17]
[358715016,1745400644326,-200.0,0.000467,68]
[358715017,1745400644337,-150.0,0.000467,105]
[358715018,1745400644346,-3175.0,0.000467,120]
[358715019,1745400644356,-200.0,0.000467,68]
[358715020,1745400644365,-333.406799,0.000467,30]
[358715021,1745400644376,-114717.0,0.00046701,10]
[358715022,1745400644385,-500.0,0.00046725,30]
[358715023,1745400644395,-500.0,0.00046735,2]
[358715024,1745400644405,-1463.17525658,0.00046735,10]
[358715025,1745400644414,-500.0,0.00046735,120]
[358715026,1745400644424,-500.0,0.00046735,120]
[358715027,1745400644433,-284.90203882,0.00046735,120]
[358715028,1745400644443,-216.2364097,0.00046735,120]
[358715029,1745400644452,-150.0,0.00046735,120]
[358715030,1745400644461,-500.0,0.00046735,120]
[358715031,1745400644471,-500.0,0.00046735,120]
[358715032,1745400644480,-500.0,0.00046735,120]
[358715033,1745400644489,-500.0,0.00046735,120]
[358715034,1745400644499,-500.0,0.00046735,120]
[358715035,1745400644509,-500.0,0.00046735,120]
[358715036,1745400644520,-150.0,0.00046735,120]
[358715037,1745400644530,-150.0,0.00046735,120]
[358715038,1745400644539,-150.0,0.00046735,120]
[358715039,1745400644549,-170.66404548,0.00046735,120]
[358715040,1745400644559,-500.0,0.00046735,120]
[358715041,1745400644569,-500.0,0.00046735,120]
[358715042,1745400644579,-216.16724237,0.00046735,120]
[358715043,1745400644588,-207.38778015,0.00046735,120]
[358715044,1745400644598,-150.0,0.00046735,120]
[358715045,1745400644607,-150.0,0.00046735,120]
[358715046,1745400644617,-201.5837013,0.00046735,120]
[358715047,1745400644626,-150.0,0.00046735,120]
[358715048,1745400644636,-158.85871913,0.00046735,120]
[358715049,1745400644646,-153.25602065,0.00046735,120]
[358715050,1745400644655,-500.0,0.00046735,120]
[358715051,1745400644665,-500.0,0.00046735,120]
[358715052,1745400644675,-500.0,0.00046735,120]
[358715053,1745400644684,-555.85374743,0.00046735,120]
[358715054,1745400644694,-500.0,0.00046735,120]
[358715055,1745400644703,-500.0,0.00046735,120]
[358715056,1745400644713,-201.66130777,0.00046735,120]
[358715057,1745400644722,-150.0,0.00046735,60]
[358715058,1745400644732,-151.55449105,0.00046735,60]
[358715059,1745400644741,-150.81689232,0.00046735,120]
[358715060,1745400644751,-500.0,0.00046735,120]
[358715061,1745400644760,-500.0,0.00046735,120]
[358715062,1745400644770,-500.0,0.00046735,120]
[358715063,1745400644780,-312.09219957,0.00046735,120]
[358715064,1745400644789,-150.83845149,0.00046735,120]
[358715065,1745400644799,-150.0,0.00046735,120]
[358715066,1745400644808,-150.0,0.00046735,120]
[358715067,1745400644818,-150.0,0.00046735,120]
[358715068,1745400644828,-150.0,0.00046735,120]
[358715069,1745400644838,-150.0,0.00046735,120]
[358715070,1745400644847,-247.06943474,0.00046735,120]
[358715071,1745400644857,-193.77719744,0.00046735,120]
[358715072,1745400644867,-500.0,0.00046735,120]
[358715073,1745400644876,-500.0,0.00046735,120]
[358715074,1745400644885,-499.22846638,0.00046735,120]
[358715075,1745400644895,-470.0,0.00046735,120]
[358715076,1745400644905,-470.0,0.00046735,120]
[358715077,1745400644915,-470.0,0.00046735,120]
[358715078,1745400644925,-470.0,0.00046735,120]
[358715079,1745400644934,-470.0,0.00046735,120]
[358715080,1745400644943,-470.0,0.00046735,120]
[358715081,1745400644953,-470.0,0.00046735,120]
[358715082,1745400644963,-470.0,0.00046735,120]
[358715083,1745400645180,-470.0,0.00046735,120]
[358715084,1745400645190,-470.0,0.00046735,120]
[358715085,1745400645201,-470.0,0.00046735,120]
[358715086,1745400645211,-470.0,0.00046735,120]
[358715087,1745400645221,-470.0,0.00046735,120]
[358715088,1745400645231,-470.0,0.00046735,120]
[358715090,1745400645240,-470.0,0.00046735,120]
[358715091,1745400645250,-470.0,0.00046735,120]
[358715092,1745400645260,-470.0,0.00046735,120]